fUST/lending_fUST_20240814
["ID","MTS","AMOUNT","RATE_DAILY","PERIOD"]
[334792542,1723572649727,-71330.76531968,0.000137,2]
[334792543,1723572649737,-151.0,0.000137,2]
[334792544,1723572649749,-151.0,0.000137,2]
[334792545,1723572649763,-151.0,0.000137,2]
[334792546,1723572649774,-150.112233,0.000137,2]
[334792547,1723572649785,-150.112233,0.000137,2]
[334792548,1723572649794,-150.112233,0.000137,2]
[334792549,1723572649805,-161.539125,0.000137,2]
[334792550,1723572649815,-161.539125,0.000137,2]
[334792551,1723572649824,-151.0,0.000137,2]
[334792552,1723572649833,-151.0,0.000137,2]
[334792553,1723572649843,-285.036668,0.000137,2]
[334792554,1723572649852,-285.036668,0.000137,2]
[334792555,1723572649862,-194.587962,0.000137,2]
[334792556,1723572649873,-194.587962,0.000137,2]
[334792557,1723572649883,-211.727938,0.000137,2]
[334792558,1723572649894,-211.727938,0.000137,2]
[334792559,1723572649905,-151.0,0.000137,2]
[334792560,1723572649918,-257.534103,0.000137,2]
[334792561,1723572649928,-257.534108,0.000137,2]
[334792562,1723572649940,-2816.972207,0.000137,2]
[334792563,1723572649950,-2816.972214,0.000137,2]
[334792564,1723572649960,-150.112233,0.000137,2]
[334792565,1723572649971,-150.112233,0.000137,2]
[334792566,1723572649982,-150.112233,0.000137,2]
[334792567,1723572649996,-465.00000364,0.00013754,2]
[334792568,1723572650006,-150.112233,0.000138,2]
[334792569,1723572650017,-150.112233,0.000138,2]
[334792570,1723572650026,-158.0,0.0001386,2]
[334792571,1723572650037,-150.112233,0.000139,2]
[334792572,1723572650047,-150.112233,0.000139,2]
[334792573,1723572650059,-150.112233,0.000139,2]
[334792574,1723572650070,-169.134639,0.00013942,2]
[334792575,1723572650081,-161.539125,0.00013942,2]
[334792576,1723572650090,-161.539125,0.00013942,2]
[334792577,1723572650100,-151.0,0.00013942,2]
[334792578,1723572650111,-151.0,0.00013942,2]
[334792579,1723572650122,-285.036668,0.00013942,2]
[334792580,1723572650133,-285.036675,0.00013942,2]
[334792581,1723572650143,-194.587962,0.00013942,2]
[334792582,1723572650153,-194.587954,0.00013942,2]
[334792583,1723572650164,-211.727938,0.00013942,2]
[334792584,1723572650175,-211.727948,0.00013942,2]
[334792585,1723572650186,-203.50934828,0.00013951,2]
[334792586,1723572650197,-5988.76086081,0.00013951,2]
[334792587,1723572650207,-151.0,0.00013951,2]
[334792588,1723572650217,-151.0,0.00013951,2]
[334792589,1723572650226,-151.0,0.00013972,2]
[334792590,1723572650236,-151.0,0.00013972,2]
[334792591,1723572650246,-151.0,0.00013972,2]
[334792592,1723572650256,-151.0,0.00013972,2]
[334792593,1723572650265,-151.0,0.00013972,2]
[334792594,1723572650275,-151.0,0.00013972,2]
[334792595,1723572650284,-500.0,0.00013972,2]
[334792596,1723572650294,-558.11,0.00013972,2]
[334792597,1723572650304,-500.0,0.00013972,2]
[334792598,1723572650314,-588.92257893,0.00013972,2]
[334792599,1723572650324,-710.78,0.00013972,2]
[334792600,1723572650333,-500.0,0.00013972,2]
[334792601,1723572650343,-500.0,0.00013972,2]
[334792602,1723572650353,-500.0,0.00013972,2]
[334792603,1723572650363,-500.0,0.00013972,2]
[334792604,1723572650372,-500.0,0.00013972,2]
[334792605,1723572650381,-161.539125,0.00013972,2]
[334792606,1723572650390,-161.539125,0.00013972,2]
[334792607,1723572650400,-161.539125,0.00013972,2]
[334792608,1723572650409,-161.539125,0.00013972,2]
[334792609,1723572650419,-161.539125,0.00013972,2]
[334792610,1723572650429,-161.539122,0.00013972,2]
[334792611,1723572650438,-500.0,0.00013972,2]
[334792612,1723572650449,-151.0,0.00013972,2]
[334792613,1723572650458,-500.0,0.00013972,2]
[334792614,1723572650468,-500.0,0.00013972,2]
[334792615,1723572650477,-151.0,0.00013972,2]
[334792616,1723572650487,-151.0,0.00013972,2]
[334792617,1723572650496,-248.424075,0.00013972,2]
[334792618,1723572650505,-500.0,0.00013972,2]
[334792619,1723572650515,-561.84,0.00013972,2]
[334792620,1723572650524,-500.0,0.00013972,2]
[334792621,1723572650533,-156.45,0.00013972,2]
[334792622,1723572650543,-500.0,0.00013972,2]
[334792623,1723572650552,-500.0,0.00013972,2]
[334792624,1723572650563,-500.0,0.00013972,2]
[334792625,1723572650572,-500.0,0.00013972,2]
[334792626,1723572650581,-500.0,0.00013972,2]
[334792627,1723572650591,-507.38404864,0.00013972,2]
[334792628,1723572650601,-689.94,0.00013972,2]
[334792629,1723572650610,-500.0,0.00013972,2]
[334792630,1723572650620,-1399.68,0.00013972,2]
[334792631,1723572650630,-500.0,0.00013972,2]
[334792632,1723572650639,-500.0,0.00013972,2]
[334792633,1723572650649,-500.0,0.00013972,2]
[334792634,1723572650658,-975.7,0.00013972,2]
[334792635,1723572650668,-500.0,0.00013972,2]
[334792636,1723572650677,-500.0,0.00013972,2]
[334792637,1723572650687,-500.0,0.00013972,2]
[334792638,1723572650696,-500.0,0.00013972,2]
[334792639,1723572650705,-500.0,0.00013972,2]
[334792640,1723572650715,-500.0,0.00013972,2]
[334792641,1723572650724,-500.0,0.00013972,2]
[334792642,1723572650733,-500.0,0.00013972,2]
[334792643,1723572650743,-500.0,0.00013972,2]
[334792644,1723572650752,-500.0,0.00013972,2]
[334792645,1723572650761,-347.8709503,0.00013972,2]
[334792646,1723572650771,-500.0,0.00013972,2]
[334792647,1723572650780,-500.0,0.00013972,2]
[334792648,1723572650790,-500.0,0.00013972,2]
[334792649,1723572650799,-500.0,0.00013972,2]
[334792650,1723572650809,-500.0,0.00013972,2]
[334792651,1723572650819,-601.1,0.00013972,2]
[334792652,1723572650829,-670.23,0.00013972,2]
[334792653,1723572650839,-500.0,0.00013972,2]
[334792654,1723572650849,-500.0,0.00013972,2]
[334792655,1723572650858,-500.0,0.00013972,2]
[334792656,1723572650868,-500.0,0.00013972,2]
[334792657,1723572650877,-500.0,0.00013972,2]
[334792658,1723572650887,-500.0,0.00013972,2]
[334792659,1723572650896,-500.0,0.00013972,2]
[334792660,1723572650906,-500.0,0.00013972,2]
[334792661,1723572650918,-500.0,0.00013972,2]
[334792662,1723572650928,-500.0,0.00013972,2]
[334792663,1723572650938,-500.0,0.00013972,2]
[334792664,1723572650948,-536.88,0.00013972,2]
[334792665,1723572650958,-659.69,0.00013972,2]
[334792666,1723572650968,-1337.29,0.00013972,2]
[334792667,1723572650977,-2827.39,0.00013972,2]
[334792668,1723572650987,-500.0,0.00013972,2]
[334792669,1723572650999,-876.96,0.00013972,2]
[334792670,1723572651008,-915.89,0.00013972,2]
[334792671,1723572651017,-3066.56,0.00013972,2]
[334792672,1723572651027,-730.3,0.00013972,2]
[334792673,1723572651036,-500.0,0.00013972,2]
[334792674,1723572651046,-772.82,0.00013972,2]
[334792675,1723572651055,-632.5,0.00013972,2]
[334792676,1723572651074,-500.0,0.00013972,2]
[334792677,1723572651084,-500.0,0.00013972,2]
[334792678,1723572651095,-250.34358349,0.00013972,2]
[334792679,1723572651106,-1082.88,0.00013972,2]
[334792680,1723572651116,-500.0,0.00013972,2]
[334792681,1723572651126,-3032.99,0.00013972,2]
[334792682,1723572651136,-699.11,0.00013972,2]
[334792683,1723572651147,-638.92,0.00013972,2]
[334792684,1723572651157,-500.0,0.00013972,2]
[334792685,1723572651166,-500.0,0.00013972,2]
[334792686,1723572651178,-500.0,0.00013972,2]
[334792687,1723572651187,-500.0,0.00013972,2]
[334792688,1723572651197,-1145.15,0.00013972,2]
[334792689,1723572651206,-603.08,0.00013972,2]
[334792690,1723572651217,-1072.75,0.00013972,2]
[334792691,1723572651227,-741.49,0.00013972,2]
[334792692,1723572651238,-627.62,0.00013972,2]
[334792693,1723572651247,-500.0,0.00013972,2]
[334792694,1723572651257,-1010.06,0.00013972,2]
[334792695,1723572651267,-583.24,0.00013972,2]
[334792696,1723572651279,-500.0,0.00013972,2]
[334792697,1723572651288,-788.91,0.00013972,2]
[334792698,1723572651298,-1108.44,0.00013972,2]
[334792699,1723572651309,-500.0,0.00013972,2]
[334792700,1723572651319,-531.3,0.00013972,2]
[334792701,1723572651331,-500.0,0.00013972,2]
[334792702,1723572651341,-3900.26,0.00013972,2]
[334792703,1723572651351,-500.0,0.00013972,2]
[334792704,1723572651361,-500.0,0.00013972,2]
[334792705,1723572651370,-500.0,0.00013972,2]
[334792706,1723572651379,-643.76,0.00013972,2]
[334792707,1723572651388,-500.0,0.00013972,2]
[334792708,1723572651398,-605.98,0.00013972,2]
[334792709,1723572651407,-749.21,0.00013972,2]
[334792710,1723572651417,-751.97,0.00013972,2]
[334792711,1723572651426,-723.37,0.00013972,2]
[334792712,1723572651436,-887.39,0.00013972,2]
[334792713,1723572651447,-197.73020184,0.00013972,2]
[334792714,1723572651456,-500.0,0.00013972,2]
[334792715,1723572651465,-1436.16,0.00013972,2]
[334792716,1723572651475,-1119.21,0.00013972,2]
[334792717,1723572651485,-5487.78,0.00013972,2]
[334792718,1723572651494,-2207.14,0.00013972,2]
[334792719,1723572651504,-500.0,0.00013972,2]
[334792720,1723572651514,-500.0,0.00013972,2]
[334792721,1723572651523,-5399.58,0.00013972,2]
[334792722,1723572651532,-1638.95,0.00013972,2]
[334792723,1723572651542,-585.03,0.00013972,2]
[334792724,1723572651552,-1000.03,0.00013972,2]
[334792725,1723572651573,-970.13,0.00013972,2]
[334792726,1723572651582,-606.78,0.00013972,2]
[334792727,1723572651591,-614.25,0.00013972,2]
[334792728,1723572651602,-914.25,0.00013972,2]
[334792729,1723572651611,-500.0,0.00013972,2]
[334792730,1723572651621,-500.0,0.00013972,2]
[334792731,1723572651631,-835.99,0.00013972,2]
[334792732,1723572651640,-500.0,0.00013972,2]
[334792733,1723572651650,-855.32,0.00013972,2]
[334792734,1723572651660,-753.42,0.00013972,2]
[334792735,1723572651670,-500.0,0.00013972,2]
[334792736,1723572651679,-500.0,0.00013972,2]
[334792737,1723572651689,-544.7,0.00013972,2]
[334792738,1723572651699,-565.43,0.00013972,2]
[334792739,1723572651708,-500.0,0.00013972,2]
[334792740,1723572651718,-783.28,0.00013972,2]
[334792741,1723572651728,-1513.2,0.00013972,2]
[334792742,1723572651739,-717.31,0.00013972,2]
[334792743,1723572651749,-963.45,0.00013972,2]
[334792744,1723572651759,-500.0,0.00013972,2]
[334792745,1723572651768,-1433.28,0.00013972,2]
[334792746,1723572651778,-732.14,0.00013972,2]
[334792747,1723572651788,-200.0,0.00013973,2]
[334792748,1723572651797,-200.0,0.00013973,2]
[334792749,1723572651807,-150.0,0.00014149,2]
[334792750,1723572651816,-150.0,0.00014149,2]
[334792751,1723572651826,-520.0,0.00014149,2]
[334792752,1723572651835,-1413.0,0.00014149,2]
[334792753,1723572651844,-500.0,0.00014152,2]
[334792754,1723572651854,-500.0,0.00014246,2]
[334792755,1723572651864,-558.11,0.00014246,2]
[334792756,1723572651873,-500.0,0.00014246,2]
[334792757,1723572651883,-710.78,0.00014246,2]
[334792758,1723572651892,-500.0,0.00014246,2]
[334792759,1723572651903,-502.89881437,0.00014246,2]
[334792760,1723572651916,-500.0,0.00014246,2]
[334792761,1723572651927,-500.0,0.00014246,2]
[334792762,1723572651936,-500.0,0.00014246,2]
[334792763,1723572651946,-500.0,0.00014246,2]
[334792764,1723572651956,-500.0,0.00014246,2]
[334792765,1723572651966,-500.0,0.00014246,2]
[334792766,1723572651975,-500.0,0.00014246,2]
[334792767,1723572651984,-561.84,0.00014246,2]
[334792768,1723572651995,-500.0,0.00014246,2]
[334792769,1723572652004,-500.0,0.00014246,2]
[334792770,1723572652013,-500.0,0.00014246,2]
[334792771,1723572652022,-500.0,0.00014246,2]
[334792772,1723572652032,-500.0,0.00014246,2]
[334792773,1723572652042,-500.0,0.00014246,2]
[334792774,1723572652051,-689.94,0.00014246,2]
[334792775,1723572652060,-1399.68,0.00014246,2]
[334792776,1723572652070,-500.0,0.00014246,2]
[334792777,1723572652080,-500.0,0.00014246,2]
[334792778,1723572652089,-975.7,0.00014246,2]
[334792779,1723572652099,-500.0,0.00014246,2]
[334792780,1723572652108,-500.0,0.00014246,2]
[334792781,1723572652117,-500.0,0.00014246,2]
[334792782,1723572652127,-550.69959831,0.00014246,2]
[334792783,1723572652137,-500.0,0.00014246,2]
[334792784,1723572652146,-500.0,0.00014246,2]
[334792785,1723572652156,-500.0,0.00014246,2]
[334792786,1723572652166,-500.0,0.00014246,2]
[334792787,1723572652175,-500.0,0.00014246,2]
[334792788,1723572652184,-500.0,0.00014246,2]
[334792789,1723572652194,-500.0,0.00014246,2]
[334792790,1723572652203,-500.0,0.00014246,2]
[334792791,1723572652212,-500.0,0.00014246,2]
[334792792,1723572652222,-500.0,0.00014246,2]
[334792793,1723572652231,-601.1,0.00014246,2]
[334792794,1723572652240,-670.23,0.00014246,2]
[334792795,1723572652250,-500.0,0.00014246,2]
[334792796,1723572652259,-500.0,0.00014246,2]
[334792797,1723572652269,-500.0,0.00014246,2]
[334792798,1723572652278,-500.0,0.00014246,2]
[334792799,1723572652287,-500.0,0.00014246,2]
[334792800,1723572652297,-500.0,0.00014246,2]
[334792801,1723572652306,-567.79668655,0.00014246,2]
[334792802,1723572652315,-500.0,0.00014246,2]
[334792803,1723572652324,-500.0,0.00014246,2]
[334792804,1723572652334,-354.80270229,0.00014246,2]
[334792805,1723572652343,-536.88,0.00014246,2]
[334792806,1723572652352,-659.69,0.00014246,2]
[334792807,1723572652361,-1337.29,0.00014246,2]
[334792808,1723572652371,-2827.39,0.00014246,2]
[334792809,1723572652502,-500.0,0.00014246,2]
[334792810,1723572652513,-876.96,0.00014246,2]
[334792811,1723572652523,-915.89,0.00014246,2]
[334792812,1723572652533,-3066.56,0.00014246,2]
[334792813,1723572652542,-500.0,0.00014246,2]
[334792814,1723572652552,-730.3,0.00014246,2]
[334792815,1723572652561,-772.82,0.00014246,2]
[334792816,1723572652571,-632.5,0.00014246,2]
[334792817,1723572652580,-500.0,0.00014246,2]
[334792818,1723572652590,-500.0,0.00014246,2]
[334792819,1723572652600,-1082.88,0.00014246,2]
[334792820,1723572652610,-500.0,0.00014246,2]
[334792821,1723572652619,-3032.99,0.00014246,2]
[334792822,1723572652630,-699.11,0.00014246,2]
[334792823,1723572652639,-638.92,0.00014246,2]
[334792824,1723572652650,-500.0,0.00014246,2]
[334792825,1723572652660,-500.0,0.00014246,2]
[334792826,1723572652670,-500.0,0.00014246,2]
[334792827,1723572652679,-500.0,0.00014246,2]
[334792828,1723572652689,-1145.15,0.00014246,2]
[334792829,1723572652698,-603.08,0.00014246,2]
[334792830,1723572652708,-1072.75,0.00014246,2]
[334792831,1723572652718,-741.49,0.00014246,2]
[334792832,1723572652728,-627.62,0.00014246,2]
[334792833,1723572652738,-500.0,0.00014246,2]
[334792834,1723572652748,-1010.06,0.00014246,2]
[334792835,1723572652761,-583.24,0.00014246,2]
[334792836,1723572652771,-500.0,0.00014246,2]
[334792837,1723572652783,-788.91,0.00014246,2]
[334792838,1723572652793,-1108.44,0.00014246,2]
[334792839,1723572652803,-500.0,0.00014246,2]
[334792840,1723572652814,-531.3,0.00014246,2]
[334792841,1723572652825,-177.20958315,0.00014246,2]
[334792842,1723572652836,-3900.26,0.00014246,2]
[334792843,1723572652847,-500.0,0.00014246,2]
[334792844,1723572652858,-500.0,0.00014246,2]
[334792845,1723572652868,-500.0,0.00014246,2]
[334792846,1723572652879,-643.76,0.00014246,2]
[334792847,1723572652889,-500.0,0.00014246,2]
[334792848,1723572652900,-605.98,0.00014246,2]
[334792849,1723572652913,-749.21,0.00014246,2]
[334792850,1723572652927,-751.97,0.00014246,2]
[334792851,1723572652936,-723.37,0.00014246,2]
[334792852,1723572652946,-887.39,0.00014246,2]
[334792853,1723572652958,-500.0,0.00014246,2]
[334792854,1723572652967,-1436.16,0.00014246,2]
[334792855,1723572652978,-1119.21,0.00014246,2]
[334792856,1723572652990,-5487.78,0.00014246,2]
[334792857,1723572653001,-2207.14,0.00014246,2]
[334792858,1723572653011,-500.0,0.00014246,2]
[334792859,1723572653021,-500.0,0.00014246,2]
[334792860,1723572653031,-5399.58,0.00014246,2]
[334792861,1723572653041,-1638.95,0.00014246,2]
[334792862,1723572653050,-585.03,0.00014246,2]
[334792863,1723572653059,-1000.03,0.00014246,2]
[334792864,1723572653069,-970.13,0.00014246,2]
[334792865,1723572653078,-606.78,0.00014246,2]
[334792866,1723572653089,-614.25,0.00014246,2]
[334792867,1723572653098,-914.25,0.00014246,2]
[334792868,1723572653108,-406.39971067,0.00014246,2]
[334792869,1723572653119,-500.0,0.00014246,2]
[334792870,1723572653129,-835.99,0.00014246,2]
[334792871,1723572653138,-855.32,0.00014246,2]
[334792872,1723572653148,-753.42,0.00014246,2]
[334792873,1723572653157,-500.0,0.00014246,2]
[334792874,1723572653168,-500.0,0.00014246,2]
[334792875,1723572653179,-544.7,0.00014246,2]
[334792876,1723572653190,-565.43,0.00014246,2]
[334792877,1723572653199,-500.0,0.00014246,2]
[334792878,1723572653209,-783.28,0.00014246,2]
[334792879,1723572653219,-1513.2,0.00014246,2]
[334792880,1723572653229,-717.31,0.00014246,2]
[334792881,1723572653240,-963.45,0.00014246,2]
[334792882,1723572653250,-1433.28,0.00014246,2]
[334792883,1723572653260,-732.14,0.00014246,2]
[334792884,1723572653271,-544.125871,0.00014247,2]
[334792885,1723572653281,-519.801749,0.00014247,2]
[334792886,1723572653292,-465.00000018,0.00014442,2]
[334792887,1723572653303,-600.0,0.00014465,2]
[334792888,1723572653313,-558.11,0.0001452,2]
[334792889,1723572653323,-500.0,0.0001452,2]
[334792890,1723572653334,-710.78,0.0001452,2]
[334792891,1723572653344,-500.0,0.0001452,2]
[334792892,1723572653355,-500.0,0.0001452,2]
[334792893,1723572653367,-500.0,0.0001452,2]
[334792894,1723572653378,-560.76662354,0.0001452,2]
[334792895,1723572653388,-500.0,0.0001452,2]
[334792896,1723572653398,-482.38615681,0.0001452,2]
[334792897,1723572653408,-500.0,0.0001452,2]
[334792898,1723572653418,-561.84,0.0001452,2]
[334792899,1723572653428,-500.0,0.0001452,2]
[334792900,1723572653438,-566.67079666,0.0001452,2]
[334792901,1723572653447,-500.0,0.0001452,2]
[334792902,1723572653457,-500.0,0.0001452,2]
[334792903,1723572653467,-500.0,0.0001452,2]
[334792904,1723572653477,-500.0,0.0001452,2]
[334792905,1723572653486,-689.94,0.0001452,2]
[334792906,1723572653496,-1399.68,0.0001452,2]
[334792907,1723572653505,-500.0,0.0001452,2]
[334792908,1723572653515,-500.0,0.0001452,2]
[334792909,1723572653525,-975.7,0.0001452,2]
[334792910,1723572653535,-500.0,0.0001452,2]
[334792911,1723572653544,-500.0,0.0001452,2]
[334792912,1723572653554,-500.0,0.0001452,2]
[334792913,1723572653563,-500.0,0.0001452,2]
[334792914,1723572653573,-500.0,0.0001452,2]
[334792915,1723572653583,-500.0,0.0001452,2]
[334792916,1723572653593,-500.0,0.0001452,2]
[334792917,1723572653603,-500.0,0.0001452,2]
[334792918,1723572653612,-500.0,0.0001452,2]
[334792919,1723572653622,-500.0,0.0001452,2]
[334792920,1723572653633,-500.0,0.0001452,2]
[334792921,1723572653642,-500.0,0.0001452,2]
[334792922,1723572653652,-500.0,0.0001452,2]
[334792923,1723572653661,-601.1,0.0001452,2]
[334792924,1723572653670,-670.23,0.0001452,2]
[334792925,1723572653680,-500.0,0.0001452,2]
[334792926,1723572653689,-500.0,0.0001452,2]
[334792927,1723572653698,-500.0,0.0001452,2]
[334792928,1723572653707,-500.0,0.0001452,2]
[334792929,1723572653717,-500.0,0.0001452,2]
[334792930,1723572653727,-500.0,0.0001452,2]
[334792931,1723572653737,-500.0,0.0001452,2]
[334792932,1723572653746,-500.0,0.0001452,2]
[334792933,1723572653755,-536.88,0.0001452,2]
[334792934,1723572653765,-659.69,0.0001452,2]
[334792935,1723572653775,-1337.29,0.0001452,2]
[334792936,1723572653785,-2827.39,0.0001452,2]
[334792937,1723572653795,-500.0,0.0001452,2]
[334792938,1723572653804,-876.96,0.0001452,2]
[334792939,1723572653814,-915.89,0.0001452,2]
[334792940,1723572653823,-3066.56,0.0001452,2]
[334792941,1723572653834,-500.0,0.0001452,2]
[334792942,1723572653844,-730.3,0.0001452,2]
[334792943,1723572653854,-772.82,0.0001452,2]
[334792944,1723572653863,-632.5,0.0001452,2]
[334792945,1723572653874,-500.0,0.0001452,2]
[334792946,1723572653884,-500.0,0.0001452,2]
[334792947,1723572653893,-1082.88,0.0001452,2]
[334792948,1723572653903,-500.0,0.0001452,2]
[334792949,1723572653917,-3032.99,0.0001452,2]
[334792950,1723572653928,-699.11,0.0001452,2]
[334792951,1723572653938,-638.92,0.0001452,2]
[334792952,1723572653948,-500.0,0.0001452,2]
[334792953,1723572653958,-500.0,0.0001452,2]
[334792954,1723572653967,-500.0,0.0001452,2]
[334792955,1723572653977,-500.0,0.0001452,2]
[334792956,1723572653987,-1145.15,0.0001452,2]
[334792957,1723572653998,-603.08,0.0001452,2]
[334792958,1723572654007,-1072.75,0.0001452,2]
[334792959,1723572654017,-741.49,0.0001452,2]
[334792960,1723572654027,-627.62,0.0001452,2]
[334792961,1723572654036,-500.0,0.0001452,2]
[334792962,1723572654046,-1010.06,0.0001452,2]
[334792963,1723572654056,-583.24,0.0001452,2]
[334792964,1723572654066,-500.0,0.0001452,2]
[334792965,1723572654076,-788.91,0.0001452,2]
[334792966,1723572654087,-1108.44,0.0001452,2]
[334792967,1723572654098,-500.0,0.0001452,2]
[334792968,1723572654109,-531.3,0.0001452,2]
[334792969,1723572654119,-3900.26,0.0001452,2]
[334792970,1723572654129,-210.61041639,0.0001452,2]
[334792971,1723572654140,-500.0,0.0001452,2]
[334792972,1723572654150,-225.04,0.0001452,2]
[334792973,1723572654161,-643.76,0.0001452,2]
[334792974,1723572654171,-500.0,0.0001452,2]
[334792975,1723572654182,-605.98,0.0001452,2]
[334792976,1723572654192,-749.21,0.0001452,2]
[334792977,1723572654202,-751.97,0.0001452,2]
[334792978,1723572654212,-723.37,0.0001452,2]
[334792979,1723572654221,-887.39,0.0001452,2]
[334792980,1723572654230,-500.0,0.0001452,2]
[334792981,1723572654240,-1436.16,0.0001452,2]
[334792982,1723572654249,-1119.21,0.0001452,2]
[334792983,1723572654258,-5487.78,0.0001452,2]
[334792984,1723572654269,-2207.14,0.0001452,2]
[334792985,1723572654278,-521.17563921,0.0001452,2]
[334792986,1723572654287,-500.0,0.0001452,2]
[334792987,1723572654298,-5399.58,0.0001452,2]
[334792988,1723572654307,-1638.95,0.0001452,2]
[334792989,1723572654317,-585.03,0.0001452,2]
[334792990,1723572654327,-1000.03,0.0001452,2]
[334792991,1723572654336,-970.13,0.0001452,2]
[334792992,1723572654346,-606.78,0.0001452,2]
[334792993,1723572654356,-614.25,0.0001452,2]
[334792994,1723572654365,-914.25,0.0001452,2]
[334792995,1723572654375,-500.0,0.0001452,2]
[334792996,1723572654384,-835.99,0.0001452,2]
[334792997,1723572654396,-855.32,0.0001452,2]
[334792998,1723572654406,-753.42,0.0001452,2]
[334792999,1723572654415,-500.0,0.0001452,2]
[334793000,1723572654424,-500.0,0.0001452,2]
[334793001,1723572654434,-544.7,0.0001452,2]
[334793002,1723572654444,-565.43,0.0001452,2]
[334793003,1723572654453,-500.0,0.0001452,2]
[334793004,1723572654464,-783.28,0.0001452,2]
[334793005,1723572654475,-1513.2,0.0001452,2]
[334793006,1723572654484,-717.31,0.0001452,2]
[334793007,1723572654493,-963.45,0.0001452,2]
[334793008,1723572654502,-1433.28,0.0001452,2]
[334793009,1723572654512,-732.14,0.0001452,2]
[334793010,1723572654521,-600.0,0.00014616,2]
[334793011,1723572654531,-294.7678211,0.00014685,2]
[334793012,1723572654541,-1318.6189438,0.0001469,2]
[334793013,1723572654550,-194.79981105,0.0001469,2]
[334793014,1723572654559,-1092.74671806,0.0001469,2]
[334793015,1723572654569,-154.74467129,0.0001469,2]
[334793016,1723572654578,-154.76012181,0.0001469,2]
[334793017,1723572654588,-1364.96489753,0.0001469,2]
[334793018,1723572654598,-154.74467129,0.0001469,2]
[334793019,1723572654608,-9434.49073007,0.0001469,2]
[334793020,1723572654618,-493.00364752,0.0001469,2]
[334793021,1723572654627,-74500.62705625,0.0001469,2]
[334793022,1723572655061,-25499.37294375,0.0001469,2]
[334793023,1723572655071,-182.93379991,0.0001469,2]
[334793024,1723572655080,-600.0,0.00014767,2]
[334793025,1723572655090,-476.615587,0.00014782,2]
[334793026,1723572655099,-345.967995,0.00014782,2]
[334793027,1723572655108,-170.700823,0.00014782,2]
[334793028,1723572655117,-636.643757,0.00014782,2]
[334793029,1723572655126,-622.074062,0.00014782,2]
[334793030,1723572655136,-164.789857,0.00014782,2]
[334793031,1723572655145,-558.11,0.00014794,2]
[334793032,1723572655155,-500.0,0.00014794,2]
[334793033,1723572655164,-710.78,0.00014794,2]
[334793034,1723572655174,-283.56421292,0.00014794,2]
[334793035,1723572655183,-500.0,0.00014794,2]
[334793036,1723572655193,-500.0,0.00014794,2]
[334793037,1723572655202,-500.0,0.00014794,2]
[334793038,1723572655211,-500.0,0.00014794,2]
[334793039,1723572655221,-561.84,0.00014794,2]
[334793040,1723572655233,-500.0,0.00014794,2]
[334793041,1723572655242,-500.0,0.00014794,2]